bitfinex/quotes_ETHUSD_20220308
["timestamp","ask_amount","ask_price","bid_price","bid_amount"]
[1646709874321,1.20786282,2551.7,2551.2,1.96026]
[1646709874723,0.0053852,2551.5,2551.2,1.96026]
[1646709875524,1.20786282,2551.7,2551.2,1.95381654]
[1646709875925,1.20786282,2551.7,2550.7,1.96031]
[1646709875926,0.00538525,2551.5,2550.5,4.9011685]
[1646709876124,0.00538525,2551.5,2550.4,1.1977]
[1646709876726,1.40653284,2551.6,2550.3,1.9102]
[1646709876928,0.91857083,2550.9,2550.3,3.0805182]
[1646709877573,0.91857083,2550.9,2550.4,0.98051]
[1646709878170,0.00512136,2550.8,2550.4,0.98051]
[1646709879273,0.91857083,2550.9,2549.9,12.0610872]
[1646709879274,0.91857083,2550.9,2549.9,2.8633]
[1646709879478,0.00512141,2550.7,2549.9,2.8633]
[1646709879674,0.00512141,2550.7,2549.7,1.1903]
[1646709880375,0.3925,2550.7,2549.4,1.8847]
[1646709880777,0.00512183,2550.3,2549.4,1.8847]
[1646709880984,1.12261628,2550.1,2549.6,1.21199565]
[1646709881827,0.00499532,2550.0,2549.6,1.21199565]
[1646709882029,0.00499532,2550.0,2549.7,3.5]
[1646709882228,0.00499532,2550.0,2549.8,3.5]
[1646709882628,0.00499532,2550.0,2549.8,3.8]
[1646709882828,2.4992,2551.0,2549.8,4.8]
[1646709883031,0.48778703,2550.9,2550.0,2.35354]
[1646709883228,0.01997462,2550.9,2550.1,5.76073]
[1646709883427,0.01997462,2550.9,2550.1,8.1139587]
[1646709883630,0.01997462,2550.9,2550.1,9.1139587]
[1646709884027,1.05703511,2551.0,2550.5,1.02470662]
[1646709884428,0.00499467,2550.6,2550.5,1.02470662]
[1646709885272,3.00463284,2551.6,2550.5,1.02470662]
[1646709885472,0.00501121,2550.7,2550.5,1.02470662]
[1646709886376,1.133565,2551.1,2550.5,1.02470662]
[1646709886575,0.48772539,2551.0,2550.5,1.02470662]
[1646709886778,0.00501117,2550.7,2550.5,1.02470662]
[1646709887676,1.1335648,2551.1,2550.5,1.02470662]
[1646709887878,0.00501117,2550.7,2550.3,0.98042]
[1646709888076,0.00501117,2550.7,2550.2,1.9559]
[1646709888919,1.00933943,2550.7,2550.2,1.9559]
[1646709889122,0.00247506,2550.6,2550.2,1.9559]
[1646709889620,0.00247506,2550.6,2549.9,1.96118]
[1646709889621,0.33889125,2550.1,2549.9,1.96118]
[1646709889819,0.33889125,2550.1,2549.7,1.96134]
[1646709890423,0.34136631,2550.1,2549.7,1.96134]
[1646709891227,0.33889125,2550.1,2549.8,0.97045637]
[1646709891626,0.00247506,2550.0,2549.8,0.97045637]
[1646709892024,0.00247506,2550.0,2549.9,0.98066]
[1646709892471,0.33889125,2550.1,2549.9,0.98066]
[1646709892871,0.34431491,2550.1,2549.9,0.98066]
[1646709893775,0.33889125,2550.1,2549.9,0.98066]
[1646709893973,0.34431486,2550.1,2549.9,0.98066]
[1646709894173,0.34431486,2550.1,2549.9,1.9612328]
[1646709894973,0.33889125,2550.1,2549.9,1.9612328]
[1646709895175,0.34431486,2550.1,2549.9,1.9612328]
[1646709896221,0.33889125,2550.1,2549.9,1.9612328]
[1646709896427,0.34417485,2550.1,2549.9,1.9612328]
[1646709897222,0.33889125,2550.1,2549.9,1.9612328]
[1646709897623,0.34401215,2550.1,2549.9,1.9612328]
[1646709898422,0.33889125,2550.1,2549.9,1.9612328]
[1646709898822,0.34401215,2550.1,2549.9,1.9612328]
[1646709899622,0.33889125,2550.1,2549.9,1.9612328]
[1646709899872,0.34402694,2550.1,2549.9,1.9612328]
[1646709900273,0.34402694,2550.1,2549.9,1.28066]
[1646709900876,0.33889125,2550.1,2549.9,1.28066]
[1646709901074,0.34388893,2550.1,2549.9,1.28066]
[1646709902078,0.33889125,2550.1,2549.9,1.28066]
[1646709902279,0.34388893,2550.1,2549.9,1.28066]
[1646709902479,0.34388893,2550.1,2549.9,4.78066]
[1646709902680,0.34388893,2550.1,2549.9,1.28066]
[1646709903282,0.33889125,2550.1,2549.9,1.28066]
[1646709903480,0.34389255,2550.1,2549.9,1.28066]
[1646709904120,0.34389255,2550.1,2550.0,1.09804689]
[1646709904520,0.33889125,2550.1,2550.0,1.39804689]
[1646709904920,0.00501006,2550.2,2550.1,2.5]
[1646709905120,0.00501006,2550.2,2550.1,9.05895689]
[1646709905522,0.00501006,2550.2,2550.1,10.05895689]
[1646709905721,1.89883284,2551.1,2550.1,10.05895689]
[1646709905722,1.21246729,2550.8,2550.1,7.55895689]
[1646709905921,0.46763705,2550.7,2550.3,1.96083]
[1646709906122,0.46763705,2550.7,2550.2,0.3]
[1646709906324,0.46763705,2550.7,2550.3,1.10746546]
[1646709906726,0.46763705,2550.7,2549.8,1.1416]
[1646709906727,1.18166989,2550.7,2549.8,1.1416]
[1646709907028,1.16180246,2550.3,2549.9,3.0687335]
[1646709907224,1.18166989,2550.7,2550.0,1.1074935]
[1646709907225,0.46763705,2550.2,2550.0,1.1074935]
[1646709907470,0.46763705,2550.1,2550.0,1.1074935]
[1646709907870,0.46763705,2550.5,2550.0,1.1074935]
[1646709908071,1.01780126,2550.3,2550.0,1.1074935]
[1646709908274,0.46763705,2550.2,2550.0,1.1074935]
[1646709908473,0.47264585,2550.2,2550.0,1.1074935]
[1646709908774,0.46763705,2550.1,2549.9,1.96124]
[1646709908974,0.46763705,2550.1,2549.6,3.20373]
[1646709909173,0.46763705,2550.1,2549.8,0.98075]
[1646709909576,0.46763705,2550.0,2549.6,3.08506502]
[1646709909775,0.46763705,2549.9,2549.7,1.11909795]
[1646709910175,0.46763705,2549.8,2549.6,3.08506502]
[1646709910375,0.46763705,2549.7,2549.6,1.96133]
[1646709910576,0.46763705,2549.7,2549.6,1.11901062]
[1646709910776,0.46763705,2549.7,2549.3,4.22413192]
[1646709910976,0.46763705,2549.6,2549.4,1.11912204]
[1646709911224,0.46763705,2549.5,2549.4,1.11912204]
[1646709912928,0.71403284,2550.2,2549.4,2.09989204]
[1646709913126,1.2274,2550.3,2549.5,2.09973204]
[1646709913127,0.00500954,2549.6,2549.5,2.09973204]
[1646709913329,0.00500954,2549.6,2549.5,1.41912204]
[1646709913528,0.00500954,2549.6,2549.5,4.91912204]
[1646709913727,0.00500954,2549.6,2549.5,5.91912204]
[1646709913929,0.00500954,2549.6,2549.5,8.86100444]
[1646709914128,0.71403284,2550.4,2549.5,8.86100444]
[1646709914329,0.4571756,2550.3,2549.9,1.07041483]
[1646709914529,0.4571756,2550.2,2549.9,1.06826683]
[1646709914730,0.4571756,2550.1,2549.9,1.06826683]
[1646709914972,1.64831502,2550.5,2549.9,1.06826683]
[1646709914973,0.4571756,2550.0,2549.9,1.06826683]
[1646709915173,0.4571756,2550.0,2549.9,3.16643201]
[1646709915372,0.4571756,2550.4,2549.9,5.12751201]
[1646709915573,0.00500906,2550.1,2549.9,4.00988683]
[1646709915774,0.4571756,2550.0,2549.9,4.00988683]
[1646709916072,0.4571756,2550.0,2549.9,1.11773503]
[1646709916775,0.71403284,2550.3,2549.4,4.3645]
[1646709916975,0.00500906,2550.1,2549.5,1.11766005]
[1646709917175,0.4571756,2550.0,2549.6,0.95112585]
[1646709917379,0.4571756,2550.0,2549.7,1.11766005]
[1646709917976,0.4571756,2550.0,2549.4,2.1928]
[1646709918176,0.46218475,2550.0,2549.5,1.11807733]
[1646709918378,0.4571756,2549.9,2549.5,4.61807733]
[1646709918632,0.4571756,2549.9,2549.6,1.11807733]
[1646709918820,0.4571756,2549.9,2549.7,3.8925]
[1646709919020,1.90083284,2550.7,2549.8,16.99057733]
[1646709919219,0.45720857,2550.6,2549.9,1.51057733]
[1646709919420,1.41982578,2550.5,2550.0,2.35103707]
[1646709919625,1.41982578,2550.5,2550.1,1.11807733]
[1646709919626,0.45720857,2550.4,2550.1,1.11807733]
[1646709919823,0.45720857,2550.4,2550.1,1.41807733]
[1646709920028,0.45720857,2550.4,2550.2,1.11807733]
[1646709920227,0.45720857,2550.4,2550.2,1.41807733]
[1646709920428,0.4622173,2550.4,2550.2,0.3]
[1646709920726,0.45720857,2550.3,2550.0,1.53295974]
[1646709920927,0.45720857,2550.3,2550.1,1.1176278]
[1646709921127,0.00500873,2550.4,2550.1,1.1176278]
[1646709921128,0.00500873,2550.4,2550.2,3.5]
[1646709921328,0.71403284,2551.1,2550.3,1.1176278]
[1646709921529,1.17115089,2551.1,2550.4,3.5]
[1646709921727,0.02004607,2550.9,2550.5,1.1176278]
[1646709921928,0.45711805,2550.8,2550.5,1.1176278]
[1646709922129,0.45711805,2550.8,2550.5,2.16723231]
[1646709922371,0.45711805,2550.8,2550.5,1.04960451]
[1646709922773,0.45711805,2550.7,2550.4,1.6]
[1646709922981,0.45711805,2550.6,2550.4,0.3]
[1646709923174,0.00501208,2550.8,2550.2,1.3]
[1646709923175,0.45711805,2550.5,2550.2,1.3]
[1646709923373,0.45711805,2550.4,2550.3,1.11711843]
[1646709923573,0.45711805,2550.4,2550.3,0.196]
[1646709923773,0.71403284,2550.8,2550.3,0.196]
[1646709923974,1.05885006,2550.4,2550.3,0.196]
[1646709924177,1.05885006,2550.4,2549.9,1.1897]
[1646709924178,1.51596811,2550.4,2549.9,1.1897]
[1646709924373,1.51596811,2550.4,2549.3,5.49223481]
[1646709924374,0.45711805,2550.3,2550.0,1.11763247]
[1646709924574,0.45711805,2550.3,2549.4,16.48939381]
[1646709924775,0.45711805,2550.3,2549.5,1.31363402]
[1646709924975,0.45711805,2550.3,2549.6,1.11763402]
[1646709925178,0.00500884,2550.0,2549.7,0.196]
[1646709925374,0.45711805,2549.9,2549.8,1.11763402]
[1646709925575,0.45711805,2549.9,2549.8,1.31363402]
[1646709925975,0.45711805,2549.9,2549.8,1.11763402]
[1646709926427,1.7728829,2550.4,2549.8,1.11763402]
[1646709926428,0.00500886,2550.0,2549.8,1.11763402]
[1646709926624,0.45711805,2549.9,2549.4,3.2802]
[1646709926825,0.45711805,2549.9,2549.5,1.11799147]
[1646709927625,1.7728829,2550.4,2549.8,1.07233777]
[1646709927832,0.45707023,2550.3,2549.8,1.07233777]
[1646709929978,0.45707023,2550.3,2549.5,0.196]
[1646709930180,0.45707023,2550.3,2549.6,1.11833912]
[1646709930481,1.17110307,2550.3,2549.7,0.196]
[1646709930678,1.17110307,2550.2,2549.7,0.196]
[1646709930877,0.45707023,2550.1,2549.4,2.1928]
[1646709931078,0.45707023,2550.0,2549.5,1.11861252]
[1646709931284,0.45707023,2549.9,2549.5,2.08666654]
[1646709931483,0.45707023,2549.9,2549.6,1.11861252]
[1646709931681,0.45707023,2549.9,2549.6,1.41861252]
[1646709931882,0.45707023,2549.9,2549.7,1.11861252]
[1646709932082,0.9569965,2550.6,2549.7,1.11861252]
[1646709932083,0.71403284,2550.4,2549.7,1.11861252]
[1646709932682,0.00538277,2549.9,2549.7,1.11861252]
[1646709932882,0.45724461,2549.8,2549.7,1.11861252]
[1646709933085,0.45724593,2549.8,2549.7,1.11861252]
[1646709933283,0.00538277,2549.9,2549.7,1.11861252]
[1646709933484,1.15623629,2550.3,2549.7,1.11861252]
[1646709933485,0.45733045,2549.8,2549.7,1.11861252]
[1646709933723,0.45733421,2549.8,2549.7,1.11861252]
[1646709933923,0.00538277,2549.9,2549.7,1.11861252]
[1646709934124,0.45733375,2549.8,2549.7,1.11861252]
[1646709934321,0.00538277,2549.9,2549.7,1.11861252]
[1646709934522,0.45734759,2549.8,2549.7,1.11861252]
[1646709934723,0.4573491,2549.8,2549.7,1.11861252]
[1646709935124,0.45740342,2549.8,2549.7,1.11861252]
[1646709935322,0.45740342,2549.8,2549.6,1.11861252]
[1646709935924,0.45740342,2549.8,2549.7,1.11861252]
[1646709936124,0.64198084,2549.6,2549.4,0.196]
[1646709936329,0.45740342,2549.5,2549.4,0.196]
[1646709936529,0.64198084,2549.6,2549.4,1.11877193]
[1646709937369,0.64726513,2549.6,2549.4,1.11877193]
[1646709938169,0.64198084,2549.6,2549.4,1.11877193]
[1646709938372,0.6472718,2549.6,2549.4,1.11877193]
[1646709939173,0.45637795,2549.5,2549.4,1.11877193]
[1646709941929,0.45637795,2549.5,2549.3,0.00095192]
[1646709942129,0.45637795,2549.5,2549.0,1.1574]
[1646709942130,0.45637795,2549.5,2548.9,2.1472861]
[1646709942529,1.02860142,2549.4,2548.9,3.07206097]
[1646709943138,0.64198084,2549.6,2548.9,3.37206097]
[1646709943334,0.00529086,2549.3,2548.9,3.37206097]
[1646709943538,0.00529086,2549.3,2549.0,1.9615743]
[1646709944137,0.64198084,2549.6,2549.1,0.3]
[1646709944536,0.00529086,2549.3,2549.1,0.3]
[1646709945371,0.64198084,2549.6,2549.1,2.4573885]
[1646709945571,0.00529085,2549.3,2549.2,4.4806845]
[1646709945976,0.00529085,2549.3,2549.2,6.4420545]
[1646709946180,0.00529085,2549.3,2549.2,2.9420545]
[1646709946379,0.00529085,2549.3,2549.2,3.2420545]
[1646709946579,0.64198084,2549.6,2549.2,3.2420545]
[1646709946779,0.64198084,2549.6,2549.4,1.20772626]
[1646709946981,0.64198084,2549.6,2549.4,1.50772626]
[1646709948082,0.6472714,2549.6,2549.4,1.50772626]
[1646709948924,0.64198084,2549.6,2549.4,1.50772626]
[1646709949130,0.64474464,2549.6,2549.4,1.20772626]
[1646709950132,0.64198084,2549.6,2549.4,1.20772626]
[1646709950535,0.64474464,2549.6,2549.4,1.20772626]
[1646709950734,0.64474464,2549.6,2549.3,0.196]
[1646709951135,0.64474464,2549.6,2549.1,0.3]
[1646709951338,0.64474464,2549.6,2548.9,3.65640129]
[1646709951339,0.64198084,2549.6,2548.9,3.95640129]
[1646709951635,0.64474464,2549.6,2548.9,3.95640129]
[1646709951834,0.64474464,2549.6,2548.9,4.15250129]
[1646709952473,0.64198084,2549.6,2548.9,4.15250129]
[1646709952672,0.64198084,2549.6,2548.9,5.22522063]
[1646709952673,0.91231565,2549.5,2548.9,5.22522063]
[1646709952874,0.00559525,2549.4,2549.0,0.70511519]
[1646709953273,0.00559525,2549.4,2549.0,4.20511519]
[1646709953474,0.00559525,2549.4,2549.1,0.70511519]
[1646709953674,0.00559525,2549.4,2549.1,1.00511519]
[1646709953876,0.64198084,2549.6,2549.2,0.196]
[1646709954074,0.64198084,2549.6,2549.5,0.90502988]
[1646709954472,0.64198084,2549.6,2549.2,3.696]
[1646709954674,0.64198084,2549.6,2549.2,0.196]
[1646709955274,0.00559509,2549.5,2549.2,0.196]
[1646709955475,0.00559509,2549.5,2549.2,0.90111519]
[1646709955876,0.00559509,2549.5,2549.2,0.196]
[1646709956136,0.64198084,2549.6,2549.2,0.196]
[1646709956534,0.00559514,2549.5,2549.2,0.196]
[1646709956832,0.91209444,2549.5,2549.2,0.196]
[1646709957232,0.00559514,2549.5,2549.2,0.196]
[1646709957431,0.64198084,2549.6,2549.2,0.196]
[1646709958034,0.64198084,2549.6,2549.2,4.40111519]
[1646709958632,0.64198084,2549.6,2549.5,1.15480589]
[1646709958832,0.64474179,2549.6,2549.5,1.15480589]
[1646709959332,0.64474179,2549.6,2549.5,2.27705474]
[1646709959732,0.64198084,2549.6,2549.5,2.27705474]
[1646709961077,0.64198084,2549.6,2549.5,1.12224885]
[1646709961286,1.09565185,2549.6,2549.5,1.12224885]
[1646709961582,1.09565185,2549.6,2549.3,1.12224885]
[1646709961784,0.64198084,2549.6,2549.3,1.12224885]
[1646709962381,0.64757576,2549.6,2549.3,1.12224885]
[1646709962981,0.64757576,2549.6,2549.3,4.92224885]
[1646709963181,0.64757576,2549.6,2549.4,13.10224885]
[1646709963383,0.64198084,2549.6,2549.5,16.99474885]
[1646709963638,0.64198084,2549.6,2549.5,18.49086404]
[1646709963828,0.64198084,2549.6,2549.5,19.49086404]
[1646709964128,0.64757576,2549.6,2549.5,19.49086404]
[1646709964531,0.64757576,2549.6,2549.5,19.09836404]
[1646709964731,0.64198084,2549.6,2549.5,2.91324885]
[1646709964929,0.64198084,2549.6,2549.5,2.42224885]
[1646709965130,0.64198084,2549.6,2549.5,1.42224885]
[1646709965832,0.64198084,2549.6,2549.5,1.12224885]
[1646709966634,0.64198084,2549.6,2549.3,1.12224885]
[1646709966635,1.09567444,2549.6,2549.3,1.12224885]
[1646709966838,1.09567444,2549.6,2549.4,1.12224885]
[1646709966839,0.64198084,2549.6,2549.4,1.12224885]
[1646709967136,0.64198084,2549.6,2549.2,2.20111519]
[1646709967374,0.64198084,2549.6,2549.2,0.496]
[1646709967375,0.64739113,2549.6,2549.2,0.496]
[1646709967578,0.64739113,2549.6,2549.2,0.196]
[1646709968177,0.64198084,2549.6,2549.2,0.196]
[1646709968478,0.64739107,2549.6,2549.2,0.196]
[1646709969483,0.64198084,2549.6,2549.2,0.196]
[1646709969683,0.64726587,2549.6,2549.2,0.196]
[1646709969980,1.15200362,2549.4,2549.2,0.196]
[1646709970382,1.15200362,2549.4,2548.9,2.57471519]
[1646709970584,1.15200362,2549.4,2548.9,1.8696]
[1646709971458,2.13313362,2549.4,2548.9,1.8696]
[1646709971655,2.13313362,2549.4,2548.9,2.1696]
[1646709971860,0.9811,2549.3,2548.9,2.1696]
[1646709972256,0.9811,2549.3,2548.7,0.3]
[1646709972456,0.98982766,2549.0,2548.7,0.3]
[1646709972656,0.98982766,2549.0,2548.6,3.22085465]
[1646709972857,0.98982766,2549.0,2548.6,2.22085465]
[1646709973056,0.98982766,2549.0,2548.6,2.00511519]
[1646709973259,0.98982766,2549.0,2548.5,1.0]
[1646709973260,0.98982766,2549.0,2548.3,0.71580138]
[1646709973456,0.98982766,2549.0,2548.3,0.01068619]
[1646709973657,1.7038605,2549.0,2548.3,0.01068619]
[1646709974056,0.87627698,2548.6,2548.3,0.01068619]
[1646709974258,0.87627698,2548.6,2548.1,1.01444958]
[1646709974259,1.85774698,2548.6,2548.1,1.01444958]
[1646709974457,2.83921698,2548.6,2548.1,1.01444958]
[1646709974660,2.83921698,2548.6,2548.1,1.03616661]
[1646709974661,1.85774698,2548.6,2548.1,1.03616661]
[1646709974880,0.87627698,2548.6,2548.1,0.02171703]
[1646709975480,0.87627698,2548.6,2547.9,0.22306836]
[1646709976285,0.98134,2548.8,2548.6,0.3587693]
[1646709976484,1.04876118,2548.8,2548.6,0.3587693]
[1646709976885,1.96273,2549.0,2548.6,0.3587693]
[1646709976886,0.3,2549.0,2548.6,0.3587693]
[1646709977085,1.4413,2549.2,2548.6,0.3587693]
[1646709977486,0.3,2549.3,2548.6,0.3587693]
[1646709977687,1.36129985,2549.6,2548.6,0.3587693]
[1646709977889,1.35601368,2549.6,2548.6,0.3587693]
[1646709978085,1.35601368,2549.6,2548.8,1.0927201]
[1646709978086,1.01518023,2549.3,2548.8,1.0927201]
[1646709978286,0.84326728,2549.6,2548.8,1.0927201]
[1646709978491,0.64726728,2549.6,2548.8,1.0927201]
[1646709978733,0.64726728,2549.6,2548.9,15.48]
[1646709979135,0.64198084,2549.6,2548.9,15.48]
[1646709979330,0.64198084,2549.6,2549.0,12.96081]
[1646709979533,0.64726755,2549.6,2549.2,12.3725]
[1646709979733,0.64726755,2549.6,2549.3,3.5]
[1646709979934,0.64726755,2549.6,2549.3,15.48]
[1646709980332,0.64198084,2549.6,2549.4,0.91635089]
[1646709980531,0.64727726,2549.6,2549.4,0.91635089]
[1646709980735,0.64727726,2549.6,2549.4,1.21635089]
[1646709981538,0.64198084,2549.6,2549.4,1.21635089]
[1646709981736,0.64727731,2549.6,2549.4,1.21635089]
[1646709982684,0.64198084,2549.6,2549.4,1.21635089]
[1646709983079,0.64727731,2549.6,2549.4,1.21635089]
[1646709983979,0.64198084,2549.6,2549.4,1.21635089]
[1646709984179,0.64727664,2549.6,2549.4,1.21635089]
[1646709985079,0.64198084,2549.6,2549.4,1.21635089]
[1646709985481,0.64727664,2549.6,2549.4,1.21635089]
[1646709986335,0.64198084,2549.6,2549.4,1.21635089]
[1646709986535,0.64727664,2549.6,2549.4,1.21635089]
[1646709986935,0.64727664,2549.6,2549.5,1.08771022]
[1646709987337,0.64727664,2549.6,2549.5,1.38771022]
[1646709987536,0.64198084,2549.6,2549.5,1.38771022]
[1646709988137,0.64198084,2549.6,2549.5,1.08771022]
[1646709988342,0.64198084,2549.6,2549.5,1.08796744]
[1646709990980,0.64198084,2549.6,2549.4,1.21635089]
[1646709991181,0.64198084,2549.6,2549.4,0.91635089]
[1646709992585,0.64727668,2549.6,2548.7,7.86502134]
[1646709992886,0.64727668,2549.6,2548.8,1.08793618]
[1646709993089,0.64727668,2549.6,2548.8,1.38793618]
[1646709993286,0.64727668,2549.6,2548.9,1.08793618]
[1646709993486,0.64198084,2549.6,2548.9,1.08793618]
[1646709993732,0.64697295,2549.6,2548.9,1.08793618]
[1646709994134,0.64697295,2549.6,2549.3,1.1202844]
[1646709994331,0.64697295,2549.6,2549.4,1.08793618]
[1646709994733,0.64198084,2549.6,2549.4,1.08793618]
[1646709994933,0.64198084,2549.6,2549.5,3.5]
[1646709995233,0.64697319,2549.6,2549.5,5.88793618]
[1646709995636,0.64697319,2549.6,2549.5,2.38793618]
[1646709995834,0.64198084,2549.6,2549.5,1.38793618]
[1646709998882,0.64198084,2549.6,2549.5,1.08793618]
[1646709999281,0.64198084,2549.6,2549.4,1.08793618]
[1646709999482,0.64198084,2549.6,2549.5,1.08793618]
[1646709999682,0.64198084,2549.6,2549.4,1.08793618]
[1646709999881,0.64198084,2549.6,2549.5,1.08793618]
[1646710000283,0.64198084,2549.6,2549.4,1.08793618]
[1646710000884,0.15101149,2550.0,2549.6,0.0009194]
[1646710001140,0.48555001,2549.9,2549.6,0.0009194]
[1646710001934,1.46649001,2549.9,2549.6,0.0009194]
[1646710002137,0.48555001,2549.8,2549.6,0.0009194]
[1646710002334,1.61729929,2549.8,2549.6,0.0009194]
[1646710002535,0.48555001,2549.7,2549.6,0.0009194]
[1646710003539,3.98555001,2549.7,2549.6,0.0009194]
[1646710006093,0.98109,2549.4,2549.0,1.08964852]
[1646710006289,0.48555001,2549.3,2548.6,3.6077693]
[1646710006490,0.48555001,2549.3,2548.7,1.08996116]
[1646710007298,0.48555001,2549.3,2548.7,1.28606116]
[1646710007490,1.07977823,2549.2,2548.8,1.08996116]
[1646710008094,1.07885944,2549.2,2548.8,1.08996116]
[1646710008492,1.07885944,2549.2,2548.7,1.08996116]
[1646710008735,0.48597451,2549.1,2548.7,1.08996116]
[1646710009729,1.07885944,2549.2,2548.7,1.08996116]
[1646710010128,0.98118,2549.1,2548.7,1.08996116]
[1646710011130,4.48118,2549.1,2548.7,1.08996116]
[1646710011348,0.48608019,2549.0,2548.7,1.08996116]
[1646710011535,4.48138,2548.9,2548.6,0.3587693]
[1646710011738,0.48608019,2548.8,2548.6,0.3587693]
[1646710012236,1.54666556,2548.8,2548.6,0.3587693]
[1646710012478,1.06058537,2548.8,2548.6,0.3587693]
[1646710012679,0.48598117,2548.7,2548.6,0.3587693]
[1646710014984,3.98598117,2548.7,2548.6,0.3587693]
[1646710015385,0.48598117,2548.7,2548.6,0.3587693]
[1646710015784,0.48598117,2548.7,2548.6,0.3087693]
[1646710018632,1.06058537,2548.8,2548.6,0.3087693]
[1646710019984,3.5,2548.7,2548.6,0.3087693]
[1646710020184,3.98649412,2548.7,2548.6,0.3087693]
[1646710020882,0.48649412,2548.7,2548.6,0.3087693]
[1646710021084,0.99801047,2548.3,2547.8,4.40761067]
[1646710021287,0.98157,2548.2,2547.9,1.08310954]
[1646710021491,0.98157,2548.2,2548.1,0.02117822]
[1646710022089,0.98157,2548.2,2548.1,1.10438399]
[1646710022288,0.98157,2548.2,2548.1,1.08320577]
[1646710022488,0.98157,2548.2,2547.8,1.13501067]
[1646710022693,0.98157,2548.2,2547.9,1.08319932]
[1646710023090,1.96317,2548.2,2548.0,1.08319932]
[1646710023293,1.96317,2548.2,2547.7,0.16515805]
[1646710023295,2.26317,2548.2,2547.7,0.16515805]
[1646710023492,2.26317,2548.2,2547.2,1.8215]
[1646710023493,0.49223304,2548.1,2547.2,1.8215]
[1646710023737,0.98179,2548.0,2547.3,1.08368353]
[1646710023938,0.98164927,2547.9,2547.6,0.0212182]
[1646710024135,1.96344927,2547.9,2547.6,0.0212182]
[1646710024536,0.9818,2547.9,2547.6,0.0212182]
[1646710024735,0.9818,2547.9,2547.3,0.87395938]
[1646710025034,0.9818,2547.9,2547.4,1.08213609]
[1646710026844,0.9818,2547.9,2547.4,1.27833609]
[1646710027043,0.9818,2547.9,2547.4,0.1962]
[1646710027240,0.9818,2547.9,2547.3,0.87395938]
[1646710027481,0.9818,2547.9,2547.4,1.08234959]
[1646710029280,4.80051271,2548.1,2547.7,0.87851488]
[1646710029281,0.87341271,2548.1,2547.7,0.87851488]
[1646710030081,0.87341271,2548.1,2547.2,7.6794]
[1646710030281,0.87341271,2548.1,2547.3,1.08223281]
[1646710030482,0.98162,2547.9,2547.3,1.08223281]
[1646710031336,0.98162,2547.9,2547.5,1.14773234]
[1646710031536,0.98154,2548.1,2547.6,1.08223281]
[1646710032336,0.98168,2548.0,2547.3,0.02124015]
[1646710032534,0.98167,2547.8,2547.4,1.08180704]
[1646710032733,0.98167,2547.8,2547.4,1.38180704]
[1646710032933,0.98167,2547.8,2547.5,1.08180704]
[1646710033735,1.96333,2548.0,2547.5,1.08180704]
[1646710033936,1.96333,2548.0,2547.6,1.19024919]
[1646710034337,1.96333,2548.0,2547.3,0.4962]
[1646710034535,1.96333,2548.0,2547.4,1.08174667]
[1646710034981,1.96333,2548.0,2547.4,1.38174667]
[1646710035183,1.96333,2548.0,2547.5,1.08174667]
[1646710037688,1.96333,2548.0,2547.4,1.2415377]
[1646710039031,1.96333,2548.0,2547.5,1.08158986]
[1646710039232,0.98158,2548.1,2547.5,1.08158986]
[1646710040537,1.96329,2548.1,2547.5,2.13610001]
[1646710040739,1.96338,2548.0,2547.5,1.05451015]
[1646710041739,0.2542706,2548.0,2547.5,1.05451015]
[1646710042984,0.98158,2548.1,2547.5,1.35451015]
[1646710043385,0.98158,2548.1,2547.6,1.05180831]
[1646710044990,0.98158,2548.1,2547.9,0.88913173]
[1646710045591,0.98158,2548.1,2547.3,0.21743245]
[1646710045890,0.98158,2548.1,2547.4,1.0528522]
[1646710046146,0.98158,2548.1,2547.4,1.3528522]
[1646710046335,0.98158,2548.1,2547.5,1.0528522]
[1646710047737,0.98158,2548.1,2547.9,0.94820963]
[1646710047938,3.13017,2548.4,2547.9,0.94820963]
[1646710048141,0.52426688,2548.3,2547.9,0.94820963]
[1646710049880,0.98152,2548.2,2547.4,0.3]
[1646710050083,0.98152,2548.2,2547.5,1.05580366]
[1646710050285,1.28152,2548.2,2547.6,0.02123143]
[1646710050681,1.28152,2548.2,2547.7,1.05580366]
[1646710051288,0.52506978,2548.1,2547.8,1.03792509]
[1646710051484,0.52506978,2548.1,2547.9,1.05580366]
[1646710051885,0.98168,2548.0,2547.4,0.32123203]
[1646710052087,0.98168,2548.0,2547.5,1.05664361]
[1646710053285,1.04237057,2547.9,2547.5,1.05664361]
[1646710053485,1.04237057,2547.9,2547.4,1.05664361]
[1646710053486,0.52567671,2547.8,2547.4,1.05664361]
[1646710053738,0.52567671,2547.8,2547.5,1.05664361]
[1646710053739,3.5,2547.7,2547.5,1.05664361]
[1646710053936,3.5,2547.7,2547.6,1.05664361]
[1646710054138,4.02577611,2547.7,2547.6,1.05664361]
[1646710054335,4.02577611,2547.7,2547.4,1.05664361]
[1646710054534,3.5,2547.7,2547.5,1.05664361]
[1646710054736,4.48182,2547.8,2547.4,1.05664361]
[1646710054934,0.52572564,2547.7,2547.5,1.05664361]
[1646710055338,0.52572564,2547.7,2547.4,1.05664361]
[1646710055536,0.52572564,2547.7,2547.3,0.1962]
[1646710055537,0.52572564,2547.7,2547.5,1.05664361]
[1646710055740,0.52572564,2547.7,2547.6,1.05664361]
[1646710055939,0.52572564,2547.7,2547.4,1.05664361]
[1646710058791,0.52572564,2547.7,2547.4,1.05019866]
[1646710059391,4.5,2548.0,2547.4,1.05019866]
[1646710060592,1.22110055,2547.9,2547.4,1.05019866]
[1646710065185,1.22110055,2547.9,2547.3,0.90131519]
[1646710068936,2.20281055,2547.9,2547.3,0.90131519]
[1646710069738,2.20281055,2547.9,2547.3,0.1962]
[1646710069938,2.20281055,2547.9,2547.3,0.90131519]
[1646710074792,1.1681,2548.1,2547.4,0.70511519]
[1646710074991,1.1681,2548.1,2547.9,1.70774509]
[1646710075191,0.71403284,2548.5,2547.9,1.70774509]
[1646710075591,0.71403284,2548.3,2547.9,1.70774509]
[1646710075792,0.98162,2548.2,2547.9,1.70774509]
[1646710075994,0.9064949,2548.0,2547.9,1.70774509]
[1646710077139,0.98162,2548.2,2547.9,1.70774509]
[1646710078141,1.96328,2548.2,2547.9,1.70774509]
[1646710078344,4.21403284,2548.1,2547.9,1.70774509]
[1646710078546,3.5,2548.0,2547.9,1.70774509]
[1646710079045,4.02730344,2548.0,2547.9,2.77523534]
[1646710079243,0.52730344,2548.0,2547.9,2.77523534]
[1646710079643,1.03274041,2548.0,2547.9,2.77523534]
[1646710079883,1.56004385,2548.0,2547.9,2.77523534]
[1646710080283,1.56004385,2548.0,2547.9,2.77389386]
[1646710080484,2.27407669,2548.0,2547.9,2.77389386]
[1646710080685,5.06004385,2548.0,2547.9,2.77389386]
[1646710080884,6.06004385,2548.0,2547.9,2.77389386]